fUSD/lending_fUSD_20240701
["ID","MTS","AMOUNT","RATE_DAILY","PERIOD"]
[330804238,1719810656633,-500.0,0.00021917,4]
[330804239,1719810656642,-500.0,0.00021917,4]
[330804240,1719810656651,-500.0,0.00021917,4]
[330804241,1719810656660,-649.49115385,0.00021917,4]
[330804242,1719810656669,-500.0,0.00021917,4]
[330804243,1719810656678,-236.32158227,0.00021917,4]
[330804244,1719810656688,-500.0,0.00021917,4]
[330804245,1719810656698,-500.0,0.00021917,4]
[330804246,1719810656710,-500.30189575,0.00021917,4]
[330804247,1719810656719,-500.0,0.00021917,4]
[330804248,1719810656729,-152.58726817,0.00021917,4]
[330804249,1719810656738,-500.0,0.00021917,4]
[330804250,1719810656748,-500.0,0.00021917,4]
[330804251,1719810656759,-500.0,0.00021917,4]
[330804252,1719810656771,-500.0,0.00021917,4]
[330804253,1719810656780,-500.0,0.00021917,4]
[330804254,1719810656790,-503.82650164,0.00021917,4]
[330804255,1719810656802,-500.0,0.00021917,4]
[330804256,1719810656812,-500.0,0.00021917,4]
[330804257,1719810656821,-500.0,0.00021917,4]
[330804258,1719810656830,-500.30311219,0.00021917,4]
[330804259,1719810656839,-500.0,0.00021917,4]
[330804260,1719810656848,-500.0,0.00021917,4]
[330804261,1719810656857,-500.0,0.00021917,4]
[330804262,1719810656866,-237.14555974,0.00021917,4]
[330804263,1719810656876,-500.0,0.00021917,4]
[330804264,1719810656886,-500.0,0.00021917,4]
[330804265,1719810656895,-496.94,0.00021917,4]
[330804266,1719810656904,-500.0,0.00021917,4]
[330804267,1719810656914,-360.75,0.00021917,4]
[330804268,1719810656923,-465.12045371,0.00021917,4]
[330804269,1719810656932,-500.0,0.00021917,4]
[330804270,1719810656941,-500.0,0.00021917,4]
[330804271,1719810656950,-238.14,0.00021917,4]
[330804272,1719810656960,-351.41,0.00021917,4]
[330804273,1719810656974,-500.0,0.00021917,4]
[330804274,1719810656984,-500.0,0.00021917,4]
[330804275,1719810656993,-500.0,0.00021917,4]
[330804276,1719810657001,-500.23306015,0.00021917,4]
[330804277,1719810657012,-285.92,0.00021917,4]
[330804278,1719810657024,-504.03236004,0.00021917,4]
[330804279,1719810657033,-501.26675262,0.00021917,4]
[330804280,1719810657044,-201.182704,0.00021917,2]
[330804281,1719810657054,-201.182704,0.00021917,2]
[330804282,1719810657064,-500.0,0.00021917,4]
[330804283,1719810657073,-500.0,0.00021917,4]
[330804284,1719810657083,-201.182704,0.00021917,2]
[330804285,1719810657092,-500.0,0.00021917,4]
[330804286,1719810657101,-191.63565056,0.00021917,4]
[330804287,1719810657111,-500.0,0.00021917,4]
[330804288,1719810657120,-201.182704,0.00021917,2]
[330804289,1719810657129,-500.0,0.00021917,4]
[330804290,1719810657137,-291.50244259,0.00021917,4]
[330804291,1719810657146,-500.0,0.00021917,4]
[330804292,1719810657155,-500.0,0.00021917,4]
[330804293,1719810657164,-500.0,0.00021917,4]
[330804294,1719810657174,-557.68063785,0.00021917,4]
[330804295,1719810657182,-500.0,0.00021917,4]
[330804296,1719810657192,-500.0,0.00021917,4]
[330804297,1719810657201,-500.0,0.00021917,4]
[330804298,1719810657209,-500.0,0.00021917,4]
[330804299,1719810657219,-500.0,0.00021917,4]
[330804300,1719810657228,-201.182704,0.00021917,2]
[330804301,1719810657237,-306.29743195,0.00021917,4]
[330804302,1719810657246,-504.18400844,0.00021917,4]
[330804303,1719810657255,-500.0,0.00021917,4]
[330804304,1719810657264,-620.63,0.00021917,4]
[330804305,1719810657274,-201.182704,0.00021917,2]
[330804306,1719810657283,-500.0,0.00021917,4]
[330804307,1719810657298,-500.0,0.00021917,4]
[330804308,1719810657312,-201.182704,0.00021917,2]
[330804309,1719810657327,-500.0,0.00021917,4]
[330804310,1719810657338,-201.182704,0.00021917,2]
[330804311,1719810657351,-500.0,0.00021917,4]
[330804312,1719810657363,-500.0,0.00021917,4]
[330804313,1719810657377,-500.0,0.00021917,4]
[330804314,1719810657391,-503.99194442,0.00021917,4]
[330804315,1719810657404,-500.0,0.00021917,4]
[330804316,1719810657420,-500.0,0.00021917,4]
[330804317,1719810657433,-500.0,0.00021917,4]
[330804318,1719810657446,-500.0,0.00021917,4]
[330804319,1719810657459,-500.0,0.00021917,4]
[330804320,1719810657471,-500.0,0.00021917,4]
[330804321,1719810657485,-500.0,0.00021917,4]
[330804322,1719810657498,-500.0,0.00021917,4]
[330804323,1719810657511,-500.0,0.00021917,4]
[330804324,1719810657522,-500.0,0.00021917,4]
[330804325,1719810657533,-500.0,0.00021917,4]
[330804326,1719810657546,-500.0,0.00021917,4]
[330804327,1719810657559,-500.0,0.00021917,4]
[330804328,1719810657571,-500.0,0.00021917,4]
[330804329,1719810657584,-500.0,0.00021917,4]
[330804330,1719810657599,-500.0,0.00021917,4]
[330804331,1719810657613,-500.0,0.00021917,4]
[330804332,1719810657624,-236.8983132,0.00021917,4]
[330804333,1719810657634,-500.0,0.00021917,4]
[330804334,1719810657645,-500.0,0.00021917,4]
[330804335,1719810657657,-500.0,0.00021917,4]
[330804336,1719810657670,-500.0,0.00021917,4]
[330804337,1719810657683,-500.0,0.00021917,4]
[330804338,1719810657693,-500.0,0.00021917,4]
[330804339,1719810657704,-500.0,0.00021917,4]
[330804340,1719810657716,-500.0,0.00021917,4]
[330804341,1719810657729,-222.57,0.00021917,4]
[330804342,1719810657739,-500.0,0.00021917,4]
[330804343,1719810657749,-500.0,0.00021917,4]
[330804344,1719810657761,-500.0,0.00021917,4]
[330804345,1719810657773,-500.0,0.00021917,4]
[330804346,1719810657784,-500.0,0.00021917,4]
[330804347,1719810657795,-151.0,0.00021917,2]
[330804348,1719810657807,-500.0,0.00021917,4]
[330804349,1719810657819,-244.6599408,0.00021917,4]
[330804350,1719810657830,-501.10746638,0.00021917,4]
[330804351,1719810657842,-151.0,0.00021917,2]
[330804352,1719810657853,-500.0,0.00021917,4]
[330804353,1719810657865,-500.0,0.00021917,4]
[330804354,1719810657877,-151.0,0.00021917,2]
[330804355,1719810657888,-500.0,0.00021917,4]
[330804356,1719810657899,-500.0,0.00021917,4]
[330804357,1719810657910,-500.0,0.00021917,4]
[330804358,1719810657922,-151.0,0.00021917,2]
[330804359,1719810657933,-185.127849,0.00021917,2]
[330804360,1719810657944,-501.6803977,0.00021917,4]
[330804361,1719810657955,-500.0,0.00021917,4]
[330804362,1719810657971,-500.0,0.00021917,4]
[330804363,1719810657983,-500.0,0.00021917,4]
[330804364,1719810657994,-500.0,0.00021917,4]
[330804365,1719810658007,-500.0,0.00021917,4]
[330804366,1719810658018,-500.0,0.00021917,4]
[330804367,1719810658028,-500.0,0.00021917,4]
[330804368,1719810658040,-292.31260646,0.00021917,4]
[330804369,1719810658051,-500.0,0.00021917,4]
[330804370,1719810658063,-500.0,0.00021917,4]
[330804371,1719810658074,-500.0,0.00021917,4]
[330804372,1719810658085,-500.0,0.00021917,4]
[330804373,1719810658096,-260.73,0.00021917,4]
[330804374,1719810658108,-500.0,0.00021917,4]
[330804375,1719810658119,-500.18056225,0.00021917,4]
[330804376,1719810658130,-500.0,0.00021917,4]
[330804377,1719810658141,-151.0,0.00021917,2]
[330804378,1719810658153,-297.41836506,0.00021917,4]
[330804379,1719810658165,-500.0,0.00021917,4]
[330804380,1719810658177,-151.0,0.00021917,2]
[330804381,1719810658188,-500.0,0.00021917,4]
[330804382,1719810658200,-497.8920861,0.00021917,4]
[330804383,1719810658212,-516.54395244,0.00021917,4]
[330804384,1719810658224,-590.94639289,0.00021917,4]
[330804385,1719810658236,-216.230465,0.00021917,2]
[330804386,1719810658248,-500.0,0.00021917,4]
[330804387,1719810658260,-500.0,0.00021917,4]
[330804388,1719810658272,-201.13014712,0.00021917,4]
[330804389,1719810658284,-500.0,0.00021917,4]
[330804390,1719810658298,-345.23784694,0.00021917,4]
[330804391,1719810658310,-500.0,0.00021917,4]
[330804392,1719810658321,-500.0,0.00021917,4]
[330804393,1719810658333,-500.0,0.00021917,4]
[330804394,1719810658344,-502.72565288,0.00021917,4]
[330804395,1719810658356,-500.0,0.00021917,4]
[330804396,1719810658367,-612.07436748,0.00021917,4]
[330804397,1719810658379,-500.0,0.00021917,4]
[330804398,1719810658389,-500.0,0.00021917,4]
[330804399,1719810658400,-501.11811865,0.00021917,4]
[330804400,1719810658411,-500.0,0.00021917,4]
[330804401,1719810658423,-159.56771538,0.00021917,4]
[330804402,1719810658434,-500.0,0.00021917,4]
[330804403,1719810658445,-502.52995372,0.00021917,4]
[330804404,1719810658457,-500.0,0.00021917,4]
[330804405,1719810658469,-501.18370403,0.00021917,4]
[330804406,1719810658479,-500.0,0.00021917,4]
[330804407,1719810658492,-500.0,0.00021917,4]
[330804408,1719810658503,-502.95733653,0.00021917,4]
[330804409,1719810658515,-500.0,0.00021917,4]
[330804410,1719810658527,-553.69,0.00021917,4]
[330804411,1719810658539,-500.0,0.00021917,4]
[330804412,1719810658550,-500.0,0.00021917,4]
[330804413,1719810658562,-449.33,0.00021917,4]
[330804414,1719810658573,-500.0,0.00021917,4]
[330804415,1719810658585,-480.71,0.00021917,4]
[330804416,1719810658596,-550.50046609,0.00021917,4]
[330804417,1719810658607,-458.6607998,0.00021917,4]
[330804418,1719810658620,-500.0,0.00021917,4]
[330804419,1719810658632,-505.5014454,0.00021917,4]
[330804420,1719810658643,-500.91292719,0.00021917,4]
[330804421,1719810658656,-500.0,0.00021917,4]
[330804422,1719810658668,-500.0,0.00021917,4]
[330804423,1719810658680,-500.0,0.00021917,4]
[330804424,1719810658691,-500.0,0.00021917,4]
[330804425,1719810658703,-501.71371183,0.00021917,4]
[330804426,1719810658715,-500.0,0.00021917,4]
[330804427,1719810658728,-538.59155013,0.00021917,4]
[330804428,1719810658740,-500.0,0.00021917,4]
[330804429,1719810658753,-500.0,0.00021917,4]
[330804430,1719810658764,-151.0,0.00021917,2]
[330804431,1719810658776,-500.0,0.00021917,4]
[330804432,1719810658787,-500.0,0.00021917,4]
[330804433,1719810658800,-500.0,0.00021917,4]
[330804434,1719810658811,-500.0,0.00021917,4]
[330804435,1719810658824,-151.0,0.00021917,2]
[330804436,1719810658835,-500.0,0.00021917,4]
[330804437,1719810658848,-500.0,0.00021917,4]
[330804438,1719810658861,-500.0,0.00021917,4]
[330804439,1719810658873,-502.26907855,0.00021917,4]
[330804440,1719810658885,-498.34218285,0.00021917,4]
[330804441,1719810658896,-449.32664994,0.00021917,4]
[330804442,1719810658907,-229.46117382,0.00021917,4]
[330804443,1719810658919,-500.0,0.00021917,4]
[330804444,1719810658933,-500.0,0.00021917,4]
[330804445,1719810658948,-500.0,0.00021917,4]
[330804446,1719810658962,-151.0,0.00021917,2]
[330804447,1719810658976,-345.76278306,0.00021917,4]
[330804448,1719810658988,-251.44,0.00021917,4]
[330804449,1719810659001,-151.0,0.00021917,2]
[330804450,1719810659013,-500.0,0.00021917,4]
[330804451,1719810659027,-366.5,0.00021917,4]
[330804452,1719810659037,-500.0,0.00021917,4]
[330804453,1719810659050,-500.0,0.00021917,4]
[330804454,1719810659060,-502.00866157,0.00021917,4]
[330804455,1719810659069,-254.07,0.00021917,4]
[330804456,1719810659317,-503.30370153,0.00021917,4]
[330804457,1719810659346,-500.0,0.00021917,4]
[330804458,1719810659359,-500.0,0.00021917,4]
[330804459,1719810659370,-500.0,0.00021917,4]
[330804460,1719810659380,-501.74756951,0.00021917,4]
[330804461,1719810659391,-500.0,0.00021917,4]
[330804462,1719810659401,-500.0,0.00021917,4]
[330804463,1719810659412,-250.64892304,0.00021917,4]
[330804464,1719810659421,-500.0,0.00021917,4]
[330804465,1719810659431,-500.0,0.00021917,4]
[330804466,1719810659442,-500.0,0.00021917,4]
[330804467,1719810659452,-500.0,0.00021917,4]
[330804468,1719810659462,-387.07309272,0.00021917,4]
[330804469,1719810659472,-500.0,0.00021917,4]
[330804470,1719810659482,-500.0,0.00021917,4]
[330804471,1719810659493,-499.07320021,0.00021917,4]
[330804472,1719810659503,-500.0,0.00021917,4]
[330804473,1719810659513,-500.0,0.00021917,4]
[330804474,1719810659528,-258.7101974,0.00021917,4]
[330804475,1719810659538,-500.0,0.00021917,4]
[330804476,1719810659547,-349.50477743,0.00021917,4]
[330804477,1719810659557,-501.10031276,0.00021917,4]
[330804478,1719810659566,-500.0,0.00021917,4]
[330804479,1719810659576,-799.74,0.00021917,4]
[330804480,1719810659585,-500.0,0.00021917,4]
[330804481,1719810659595,-500.0,0.00021917,4]
[330804482,1719810659605,-799.74,0.00021917,4]
[330804483,1719810659615,-500.0,0.00021917,4]
[330804484,1719810659624,-500.0,0.00021917,4]
[330804485,1719810659634,-500.0,0.00021917,4]
[330804486,1719810659643,-500.0,0.00021917,4]
[330804487,1719810659653,-500.0,0.00021917,4]
[330804488,1719810659662,-500.0,0.00021917,4]
[330804489,1719810659672,-500.0,0.00021917,4]
[330804490,1719810659681,-500.0,0.00021917,4]
[330804491,1719810659690,-500.0,0.00021917,4]
[330804492,1719810659699,-500.0,0.00021917,4]
[330804493,1719810659709,-349.40188809,0.00021917,4]
[330804494,1719810659718,-799.74,0.00021917,4]
[330804495,1719810659727,-500.0,0.00021917,4]
[330804496,1719810659737,-157.29705688,0.00021917,4]
[330804497,1719810659746,-500.0,0.00021917,4]
[330804498,1719810659755,-500.0,0.00021917,4]
[330804499,1719810659764,-500.0,0.00021917,4]
[330804500,1719810659777,-500.0,0.00021917,4]
[330804501,1719810659785,-500.0,0.00021917,4]
[330804502,1719810659794,-500.0,0.00021917,4]
[330804503,1719810659802,-500.0,0.00021917,4]
[330804504,1719810659815,-500.0,0.00021917,4]
[330804505,1719810659823,-500.0,0.00021917,4]
[330804506,1719810659832,-500.0,0.00021917,4]
[330804507,1719810659841,-500.0,0.00021917,4]
[330804508,1719810659850,-500.0,0.00021917,4]
[330804509,1719810659858,-500.0,0.00021917,4]
[330804510,1719810659869,-799.74,0.00021917,4]
[330804511,1719810659877,-160.11070012,0.00021917,4]
[330804512,1719810659886,-500.0,0.00021917,4]
[330804513,1719810659895,-500.0,0.00021917,4]
[330804514,1719810659905,-500.0,0.00021917,4]
[330804515,1719810659914,-500.0,0.00021917,4]
[330804516,1719810659923,-249.40095102,0.00021917,4]
[330804517,1719810659933,-500.0,0.00021917,4]
[330804518,1719810659942,-456.82,0.00021917,4]
[330804519,1719810659951,-500.0,0.00021917,4]
[330804520,1719810659961,-799.74,0.00021917,4]
[330804521,1719810659975,-251.17,0.00021917,4]
[330804522,1719810659984,-503.19067948,0.00021917,4]
[330804523,1719810659993,-799.74,0.00021917,4]
[330804524,1719810660003,-799.74,0.00021917,4]
[330804525,1719810660013,-799.74,0.00021917,4]
[330804526,1719810660025,-576.90917034,0.00021917,4]
[330804527,1719810660035,-500.0,0.00021917,4]
[330804528,1719810660048,-799.74,0.00021917,4]
[330804529,1719810660058,-500.0,0.00021917,4]
[330804530,1719810660067,-342.11420307,0.00021917,4]
[330804531,1719810660076,-501.53142084,0.00021917,4]
[330804532,1719810660085,-681.911306,0.00021917,2]
[330804533,1719810660094,-500.0,0.00021917,4]
[330804534,1719810660104,-681.911306,0.00021917,2]
[330804535,1719810660113,-681.911306,0.00021917,2]
[330804536,1719810660122,-500.0,0.00021917,4]
[330804537,1719810660131,-271.77962544,0.00021917,4]
[330804538,1719810660139,-681.911306,0.00021917,2]
[330804539,1719810660148,-500.0,0.00021917,4]
[330804540,1719810660158,-799.74,0.00021917,4]
[330804541,1719810660167,-500.0,0.00021917,4]
[330804542,1719810660176,-500.0,0.00021917,4]
[330804543,1719810660185,-501.06138611,0.00021917,4]
[330804544,1719810660194,-500.0,0.00021917,4]
[330804545,1719810660203,-500.0,0.00021917,4]
[330804546,1719810660212,-323.64689623,0.00021917,4]
[330804547,1719810660222,-500.0,0.00021917,4]
[330804548,1719810660231,-799.74,0.00021917,4]
[330804549,1719810660241,-501.9294027,0.00021917,4]
[330804550,1719810660251,-502.73409476,0.00021917,4]
[330804551,1719810660261,-552.47836493,0.00021917,4]
[330804552,1719810660272,-681.911306,0.00021917,2]
[330804553,1719810660282,-500.0,0.00021917,4]
[330804554,1719810660292,-799.74,0.00021917,4]
[330804555,1719810660302,-500.0,0.00021917,4]
[330804556,1719810660311,-681.911306,0.00021917,2]
[330804557,1719810660320,-563.27635471,0.00021917,4]
[330804558,1719810660329,-681.911306,0.00021917,2]
[330804559,1719810660339,-500.0,0.00021917,4]
[330804560,1719810660348,-681.911306,0.00021917,2]
[330804561,1719810660357,-503.63257932,0.00021917,4]
[330804562,1719810660366,-500.0,0.00021917,4]
[330804563,1719810660376,-500.0,0.00021917,4]
[330804564,1719810660385,-799.74,0.00021917,4]
[330804565,1719810660395,-503.91377959,0.00021917,4]
[330804566,1719810660405,-151.0,0.00021917,2]
[330804567,1719810660414,-500.0,0.00021917,4]
[330804568,1719810660424,-500.0,0.00021917,4]
[330804569,1719810660433,-427.08337368,0.00021917,4]
[330804570,1719810660444,-799.74,0.00021917,4]
[330804571,1719810660454,-500.0,0.00021917,4]
[330804572,1719810660463,-151.0,0.00021917,2]
[330804573,1719810660473,-500.0,0.00021917,4]
[330804574,1719810660482,-500.0,0.00021917,4]
[330804575,1719810660492,-159.975809,0.00021917,2]
[330804576,1719810660502,-500.0,0.00021917,4]
[330804577,1719810660511,-799.74,0.00021917,4]
[330804578,1719810660524,-211.86943327,0.00021917,4]
[330804579,1719810660533,-500.0,0.00021917,4]
[330804580,1719810660543,-799.74,0.00021917,4]
[330804581,1719810660552,-443.59241176,0.00021917,4]
[330804582,1719810660562,-799.74,0.00021917,4]
[330804583,1719810660571,-500.0,0.00021917,4]
[330804584,1719810660580,-195.90666586,0.00021917,4]
[330804585,1719810660590,-500.0,0.00021917,4]
[330804586,1719810660599,-799.74,0.00021917,4]
[330804587,1719810660608,-500.0,0.00021917,4]
[330804588,1719810660618,-343.91379494,0.00021917,4]
[330804589,1719810660627,-799.74,0.00021917,4]
[330804590,1719810660637,-500.0,0.00021917,4]
[330804591,1719810660646,-503.81259306,0.00021917,4]
[330804592,1719810660656,-799.74,0.00021917,4]
[330804593,1719810660665,-544.28905611,0.00021917,4]
[330804594,1719810660675,-500.0,0.00021917,2]
[330804595,1719810660685,-799.74,0.00021917,4]
[330804596,1719810660694,-505.23186159,0.00021917,4]
[330804597,1719810660704,-500.0,0.00021917,4]
[330804598,1719810660713,-500.0,0.00021917,4]
[330804599,1719810660722,-561.1955177,0.00021917,4]
[330804600,1719810660731,-504.99043774,0.00021917,4]
[330804601,1719810660741,-799.74,0.00021917,4]
[330804602,1719810660751,-799.74,0.00021917,4]
[330804603,1719810660761,-500.0,0.00021917,4]
[330804604,1719810660772,-151.0,0.00021917,2]
[330804605,1719810660781,-290.31324017,0.00021917,4]
[330804606,1719810660790,-151.93415,0.00021917,2]
[330804607,1719810660799,-799.76053093,0.00021917,4]
[330804608,1719810660809,-500.0,0.00021917,4]
[330804609,1719810660818,-430.99,0.00021917,4]
[330804610,1719810660827,-504.49780222,0.00021917,4]
[330804611,1719810660837,-502.56406087,0.00021917,4]
[330804612,1719810660846,-500.54435806,0.00021917,4]
[330804613,1719810660856,-500.0,0.00021917,4]
[330804614,1719810660867,-504.81019811,0.00021917,4]
[330804615,1719810660876,-500.28418999,0.00021917,4]
[330804616,1719810660886,-500.0,0.00021917,4]
[330804617,1719810660896,-500.0,0.00021917,4]
[330804618,1719810660906,-368.72,0.00021917,4]
[330804619,1719810660915,-499.62354729,0.00021917,4]
[330804620,1719810660925,-500.0,0.00021917,4]
[330804621,1719810660934,-500.0,0.00021917,4]
[330804622,1719810660944,-500.0,0.00021917,4]
[330804623,1719810660953,-500.0,0.00021917,4]
[330804624,1719810660968,-229.44239841,0.00021917,4]
[330804625,1719810660977,-500.0,0.00021917,4]
[330804626,1719810660986,-500.0,0.00021917,4]
[330804627,1719810660995,-166.55441561,0.00021917,4]
[330804628,1719810661005,-500.0,0.00021917,4]
[330804629,1719810661014,-284.92995927,0.00021917,4]
[330804630,1719810661025,-500.0,0.00021917,4]
[330804631,1719810661034,-500.75747562,0.00021917,4]
[330804632,1719810661042,-506.72452736,0.00021917,4]
[330804633,1719810661055,-500.0,0.00021917,4]
[330804634,1719810661064,-500.0,0.00021917,4]
[330804635,1719810661072,-500.0,0.00021917,4]
[330804636,1719810661081,-500.0,0.00021917,4]
[330804637,1719810661090,-151.0,0.00021917,2]
[330804638,1719810661099,-382.92450466,0.00021917,4]
[330804639,1719810661108,-500.0,0.00021917,4]
[330804640,1719810661117,-151.0,0.00021917,2]
[330804641,1719810661126,-600.15054719,0.00021917,4]
[330804642,1719810661135,-151.0,0.00021917,2]
[330804643,1719810661144,-151.0,0.00021917,2]
[330804644,1719810661153,-151.907218,0.00021917,2]
[330804645,1719810661161,-151.0,0.00021917,2]
[330804646,1719810661170,-501.74080047,0.00021917,4]
[330804647,1719810661179,-151.0,0.00021917,2]
[330804648,1719810661188,-151.0,0.00021917,2]
[330804649,1719810661197,-500.0,0.00021917,4]
[330804650,1719810661207,-500.0,0.00021917,4]
[330804651,1719810661215,-500.0,0.00021917,4]
[330804652,1719810661224,-388.53951735,0.00021917,4]
[330804653,1719810661233,-500.38445254,0.00021917,4]
[330804654,1719810661242,-501.73330542,0.00021917,4]
[330804655,1719810661250,-500.0,0.00021917,4]
[330804656,1719810661260,-571.27326797,0.00021917,4]
[330804657,1719810661269,-500.0,0.00021917,4]
[330804658,1719810661280,-151.0,0.00021917,2]
[330804659,1719810661289,-500.0,0.00021917,4]
[330804660,1719810661299,-500.0,0.00021917,4]
[330804661,1719810661309,-500.577442,0.00021917,2]
[330804662,1719810661318,-151.0,0.00021917,2]
[330804663,1719810661328,-500.0,0.00021917,4]
[330804664,1719810661337,-500.0,0.00021917,4]
[330804665,1719810661347,-151.0,0.00021917,2]
[330804666,1719810661357,-500.0,0.00021917,4]
[330804667,1719810661366,-570.52887433,0.00021917,4]
[330804668,1719810661375,-1520.75,0.00021917,4]
[330804669,1719810661384,-500.577442,0.00021917,2]
[330804670,1719810661393,-288.770766,0.00021917,2]
[330804671,1719810661403,-500.577442,0.00021917,2]
[330804672,1719810661412,-500.0,0.00021917,4]
[330804673,1719810661421,-500.577442,0.00021917,2]
[330804674,1719810661431,-1520.75,0.00021917,4]
[330804675,1719810661440,-266.25579771,0.00021917,4]
[330804676,1719810661449,-496.77216103,0.00021917,4]
[330804677,1719810661458,-1520.75,0.00021917,4]
[330804678,1719810661468,-500.47299326,0.00021917,4]
[330804679,1719810661477,-501.46133247,0.00021917,4]
[330804680,1719810661487,-1520.75,0.00021917,4]
[330804681,1719810661496,-500.0,0.00021917,4]
[330804682,1719810661506,-500.0,0.00021917,4]
[330804683,1719810661516,-500.0,0.00021917,4]
[330804684,1719810661527,-1520.75,0.00021917,4]
[330804685,1719810661537,-500.577442,0.00021917,2]
[330804686,1719810661546,-500.0,0.00021917,4]
[330804687,1719810661555,-500.577442,0.00021917,2]
[330804688,1719810661564,-558.65,0.00021917,4]
[330804689,1719810661574,-501.90118891,0.00021917,4]
[330804690,1719810661583,-500.577442,0.00021917,2]
[330804691,1719810661592,-1520.75,0.00021917,4]
[330804692,1719810661602,-500.577442,0.00021917,2]
[330804693,1719810661611,-1520.75,0.00021917,4]
[330804694,1719810661621,-503.40756235,0.00021917,4]
[330804695,1719810661630,-1520.75,0.00021917,4]
[330804696,1719810661640,-500.0,0.00021917,4]
[330804697,1719810661649,-1520.75,0.00021917,4]
[330804698,1719810661658,-500.0,0.00021917,4]
[330804699,1719810661667,-1520.75,0.00021917,4]
[330804700,1719810661676,-467.76638454,0.00021917,4]
[330804701,1719810661686,-287.96102294,0.00021917,4]
[330804702,1719810661695,-1520.75,0.00021917,4]
[330804703,1719810661704,-500.0,0.00021917,4]
[330804704,1719810661714,-532.83126477,0.00021917,4]
[330804705,1719810661723,-1520.75,0.00021917,4]
[330804706,1719810661733,-1520.75,0.00021917,4]
[330804707,1719810661742,-1520.75,0.00021917,4]
[330804708,1719810661751,-500.0,0.00021917,4]
[330804709,1719810661762,-578.54659378,0.00021917,4]
[330804710,1719810661773,-1520.75,0.00021917,4]
[330804711,1719810661782,-500.0,0.00021917,4]
[330804712,1719810661791,-500.0,0.00021917,4]
[330804713,1719810661801,-500.0,0.00021917,4]
[330804714,1719810661810,-500.0,0.00021917,4]
[330804715,1719810661820,-500.0,0.00021917,4]
[330804716,1719810661829,-1520.75,0.00021917,4]
[330804717,1719810661839,-500.0,0.00021917,4]
[330804718,1719810661848,-446.92944171,0.00021917,4]
[330804719,1719810661857,-319.55542965,0.00021917,4]
[330804720,1719810661871,-1520.75,0.00021917,4]
[330804721,1719810661880,-1520.75,0.00021917,4]
[330804722,1719810661890,-1520.75,0.00021917,4]
[330804723,1719810661899,-1520.75,0.00021917,4]
[330804724,1719810661909,-502.410739,0.00021917,4]
[330804725,1719810661918,-1520.75,0.00021917,4]
[330804726,1719810661927,-1520.75,0.00021917,4]
[330804727,1719810661938,-500.0,0.00021917,4]
[330804728,1719810661948,-500.0,0.00021917,4]
[330804729,1719810661957,-500.0,0.00021917,4]
[330804730,1719810661968,-500.0,0.00021917,4]
[330804731,1719810661979,-500.0,0.00021917,4]
[330804732,1719810661989,-500.0,0.00021917,4]
[330804733,1719810661999,-500.0,0.00021917,4]
[330804734,1719810662009,-556.4312724,0.00021917,4]
[330804735,1719810662019,-1520.75,0.00021917,4]
[330804736,1719810662031,-395.20186445,0.00021917,4]
[330804737,1719810662041,-238.24250094,0.00021917,4]